bitfinex/quotes_BTCUSD_20240906
["timestamp","ask_amount","ask_price","bid_price","bid_amount"]
[1725634858948,0.01,55125.0,55101.0,0.03673]
[1725634859158,0.362878,55115.0,55105.0,0.03673]
[1725634859412,0.1845,55129.0,55105.0,0.03673]
[1725634859640,0.1845,55129.0,55098.0,0.072786]
[1725634859641,0.4092,55126.0,55107.0,0.03673]
[1725634859869,0.4092,55126.0,55106.0,0.023]
[1725634859870,0.4092,55126.0,55109.0,0.03673]
[1725634860091,0.4092,55126.0,55111.0,0.0361962]
[1725634860546,0.362982,55099.0,55090.0,0.1896]
[1725634860764,0.362924,55108.0,55098.0,0.52650515]
[1725634861020,0.4538824,55113.0,55090.0,0.1896]
[1725634861232,0.362918,55109.0,55096.0,0.072799]
[1725634861462,0.181424,55120.0,55099.0,0.181489]
[1725634861714,0.52650515,55119.0,55104.0,0.03673]
[1725634861969,0.1904,55127.0,55104.0,0.03673]
[1725634862469,0.362805,55126.0,55106.0,0.03673]
[1725634862716,0.4077,55129.0,55105.0,0.023]
[1725634862717,0.4077,55129.0,55110.0,0.03673]
[1725634862934,0.1889,55134.0,55113.0,0.03673]
[1725634863202,0.18139,55130.0,55113.0,0.03673]
[1725634863435,0.3788,55123.0,55115.0,0.03673]
[1725634863664,0.01,55108.0,55093.0,0.52650515]
[1725634863902,0.002,55124.0,55093.0,0.52650515]
[1725634863903,0.554503,55096.0,55093.0,0.52650515]
[1725634864132,1.881707,55096.0,55076.0,0.072826]
[1725634864401,0.907817,55077.0,55076.0,0.072826]
[1725634864624,0.544869,55059.0,55058.0,0.52650515]
[1725634864881,0.181623,55059.0,55058.0,0.03673]
[1725634865105,0.3868,55069.0,55042.0,0.1803]
[1725634865106,0.01,55067.0,55042.0,0.1803]
[1725634865598,0.3768,55069.0,55042.0,0.1803]
[1725634865599,0.3868,55069.0,55047.0,0.072864]
[1725634865889,0.01,55065.0,55048.0,0.03673]
[1725634866605,0.01,55067.0,55048.0,0.03673]
[1725634866840,0.363234,55061.0,55048.0,0.03673]
[1725634867071,0.01,55064.0,55049.0,0.03673]
[1725634867294,0.3768,55069.0,55049.0,0.03673]
[1725634867548,0.3631,55082.0,55049.0,0.5634684]
[1725634867549,0.1997,55078.0,55049.0,0.5634684]
[1725634867782,0.52650515,55067.0,55056.0,0.22983]
[1725634868028,0.4079,55077.0,55056.0,0.22983]
[1725634868329,0.4079,55085.0,55060.0,0.62923]
[1725634868543,0.589439,55085.0,55064.0,0.22983]
[1725634868787,0.363089,55083.0,55064.0,0.22983]
[1725634869004,0.181549,55082.0,55066.0,0.22983]
[1725634869229,0.77098,55085.0,55066.0,0.22983]
[1725634869230,0.181562,55078.0,55066.0,0.22983]
[1725634869454,0.363029,55092.0,55067.0,0.023]
[1725634869678,0.52650515,55079.0,55068.0,0.22983]
[1725634869921,0.4538824,55082.0,55068.0,0.22983]
[1725634870141,0.3967,55093.0,55070.0,0.22983]
[1725634870392,0.181502,55096.0,55079.0,0.22983]
[1725634870642,0.4059,55102.0,55071.0,0.6174]
[1725634870643,0.52650515,55101.0,55081.0,0.22983]
[1725634870891,0.181547,55082.0,55081.0,0.22983]
[1725634871119,0.544642,55082.0,55081.0,0.22983]
[1725634871344,0.01,55069.0,55057.0,0.52650515]
[1725634871794,0.4538824,55072.0,55053.0,0.183]
[1725634872020,0.4638824,55072.0,55053.0,0.183]
[1725634872430,0.01,55079.0,55059.0,0.1931]
[1725634872435,0.181616,55061.0,55060.0,0.03673]
[1725634872602,0.4126,55078.0,55060.0,0.03673]
[1725634872603,0.01,55073.0,55060.0,0.03673]
[1725634872824,0.3926,55078.0,55060.0,0.03473]
[1725634873198,0.363187,55069.0,55060.0,0.03473]
[1725634873442,0.4026,55078.0,55050.0,0.03273]
[1725634873714,0.01,55069.0,55050.0,0.03273]
[1725634873905,0.3926,55078.0,55050.0,0.03273]
[1725634873906,0.181633,55056.0,55050.0,0.03273]
[1725634874129,0.4538824,55067.0,55050.0,0.03273]
[1725634874354,0.53650515,55072.0,55050.0,0.03273]
[1725634874609,0.01,55072.0,55050.0,0.03273]
[1725634874876,0.3865,55061.0,55050.0,0.03273]
[1725634875136,0.181649,55051.0,55050.0,0.03273]
[1725634875374,0.544948,55051.0,55050.0,0.03273]
[1725634875616,0.01,55053.0,55044.0,0.03273]
[1725634875855,0.181654,55050.0,55044.0,0.03273]
[1725634876120,0.181668,55046.0,55044.0,0.03273]
[1725634876371,0.4013,55063.0,55044.0,0.03273]
[1725634876610,0.4115,55071.0,55045.0,0.06546]
[1725634876856,0.4538824,55058.0,55047.0,0.03273]
[1725634877092,0.4015,55071.0,55047.0,0.03273]
[1725634877093,0.363233,55061.0,55047.0,0.03273]
[1725634877308,0.4015,55071.0,55049.0,0.03273]
[1725634877549,0.02,55083.0,55048.0,0.3914]
[1725634877550,0.52650515,55069.0,55053.0,0.03273]
[1725634877816,0.4038,55077.0,55053.0,0.21437]
[1725634877817,0.181574,55074.0,55053.0,0.21437]
[1725634878076,0.4538824,55088.0,55060.0,0.03273]
[1725634878330,0.1909,55093.0,55074.0,0.43913]
[1725634878331,0.52650515,55084.0,55074.0,0.43913]
[1725634878547,0.4538824,55098.0,55079.0,0.181555]
[1725634878796,0.4538824,55098.0,55075.0,0.363139]
[1725634878797,0.362975,55101.0,55080.0,0.023]
[1725634879037,0.362975,55101.0,55081.0,0.587]
[1725634879038,0.4538824,55098.0,55081.0,0.587]
[1725634879309,0.02,55109.0,55081.0,0.587]
[1725634879310,0.8288824,55110.0,55083.0,0.52650515]
[1725634879531,0.55650515,55117.0,55082.0,0.023]
[1725634879532,0.181447,55113.0,55091.0,0.181516]
[1725634879788,0.181447,55113.0,55085.0,0.4538824]
[1725634879789,0.52650515,55121.0,55098.0,0.60723]
[1725634880077,0.52650515,55121.0,55105.0,0.42193]
[1725634880289,0.362773,55131.0,55107.0,0.03673]
[1725634880290,0.363616,55127.0,55107.0,0.03673]
[1725634880512,0.6352954,55123.0,55107.0,0.03673]
[1725634880738,0.4538824,55117.0,55109.0,0.03673]
[1725634880963,0.000815,55127.0,55110.0,0.023]
[1725634881229,0.000815,55127.0,55113.0,0.03673]
[1725634881450,0.38181957,55126.0,55115.0,0.03673]
[1725634881675,0.38181957,55126.0,55117.0,0.03673]
[1725634881676,0.01901257,55126.0,55117.0,0.03673]
[1725634881927,0.01901257,55126.0,55114.0,0.023]
[1725634881928,0.01901257,55126.0,55119.0,0.03673]
[1725634882410,0.181415,55122.0,55121.0,0.03673]
[1725634882686,0.4638824,55122.0,55121.0,0.1931]
[1725634882930,0.4638824,55122.0,55106.0,0.03673]
[1725634882931,0.181465,55107.0,55106.0,0.03673]
[1725634883175,0.3899,55108.0,55097.0,0.52650515]
[1725634883418,0.181476,55104.0,55097.0,0.52650515]
[1725634883655,0.4538824,55120.0,55096.0,0.1814]
[1725634883656,0.362886,55114.0,55099.0,0.22983]
[1725634883904,0.181456,55110.0,55099.0,0.22983]
[1725634884145,0.01,55120.0,55099.0,0.22983]
[1725634884383,0.4066,55125.0,55099.0,0.22983]
[1725634884384,0.01,55122.0,55099.0,0.22983]
[1725634884629,0.4066,55125.0,55099.0,0.22983]
[1725634884630,0.544272,55120.0,55099.0,0.22983]
[1725634884869,0.544272,55120.0,55097.0,0.181496]
[1725634884870,0.01,55136.0,55111.0,0.22983]
[1725634885108,0.01,55136.0,55113.0,0.22983]
[1725634885109,0.18139,55130.0,55113.0,0.22983]
[1725634885329,0.01,55136.0,55113.0,0.22983]
[1725634885330,0.362745,55136.0,55113.0,0.22983]
[1725634885547,0.362764,55133.0,55115.0,0.22983]
[1725634886031,0.362785,55130.0,55117.0,0.22983]
[1725634886278,0.01,55137.0,55119.0,0.22983]
[1725634886562,0.181377,55134.0,55119.0,0.22983]
[1725634886798,0.181377,55134.0,55116.0,0.023]
[1725634886799,0.181381,55133.0,55121.0,0.22983]
[1725634887037,0.372737,55137.0,55123.0,0.22983]
[1725634887038,0.362758,55134.0,55123.0,0.22983]
[1725634887269,0.382737,55137.0,55126.0,0.22983]
[1725634887604,0.6345824,55150.0,55126.0,0.25283]
[1725634887605,0.00081,55149.0,55126.0,0.25283]
[1725634887812,0.00081,55149.0,55136.0,0.4538824]
[1725634888053,0.01900975,55162.0,55143.0,0.22983]
[1725634888054,0.01,55162.0,55143.0,0.22983]
[1725634888299,0.52650515,55155.0,55145.0,0.22983]
[1725634888556,0.01,55154.0,55145.0,0.22983]
[1725634888837,0.544009,55146.0,55145.0,0.03673]
[1725634889276,0.01,55151.0,55146.0,0.03673]
[1725634889518,0.362618,55155.0,55148.0,0.03673]
[1725634889727,0.362618,55155.0,55147.0,0.023]
[1725634889728,0.18132,55151.0,55150.0,0.03673]
[1725634889958,0.00081,55156.0,55150.0,0.05973]
[1725634890186,0.00081,55156.0,55150.0,0.03673]
[1725634890443,0.00081,55156.0,55134.0,0.1949]
[1725634890444,0.181366,55137.0,55136.0,0.03673]
[1725634890683,0.01,55128.0,55117.0,0.1803]
[1725634890928,0.362752,55134.0,55117.0,0.1803]
[1725634891170,0.002,55148.0,55117.0,0.1803]
[1725634891171,0.3759,55145.0,55117.0,0.1803]
[1725634891396,0.3759,55145.0,55118.0,0.1931]
[1725634891397,0.01,55136.0,55118.0,0.1931]
[1725634891612,0.01,55135.0,55121.0,0.03673]
[1725634891872,0.372831,55122.0,55121.0,0.03673]
[1725634892121,0.4058,55126.0,55121.0,0.03673]
[1725634892336,0.02,55138.0,55110.0,0.191]
[1725634892337,0.000815,55132.0,55123.0,0.03673]
[1725634892552,0.01,55128.0,55123.0,0.03673]
[1725634892775,0.181409,55124.0,55123.0,0.03673]
[1725634893041,0.917045,55124.0,55123.0,0.03673]
[1725634893511,0.181409,55124.0,55123.0,0.03673]
[1725634893760,0.544227,55124.0,55123.0,0.03673]
[1725634894026,0.01,55128.0,55123.0,0.03673]
[1725634894245,0.000815,55132.0,55123.0,0.03673]
[1725634894246,0.000815,55132.0,55123.0,0.22983]
[1725634894471,0.01,55128.0,55114.0,0.1931]
[1725634894697,0.01,55128.0,55113.0,0.3846]
[1725634894923,0.01,55128.0,55105.0,0.4105]
[1725634894924,0.3628,55127.0,55105.0,0.4105]
[1725634895141,0.01,55124.0,55106.0,0.023]
[1725634895389,0.01,55130.0,55106.0,0.023]
[1725634895605,0.01,55128.0,55107.0,0.374563]
[1725634895839,0.000815,55132.0,55106.0,0.023]
[1725634895840,0.000815,55132.0,55109.0,0.556013]
[1725634896056,0.000815,55132.0,55108.0,0.023]
[1725634896057,0.000815,55132.0,55113.0,0.1931]
[1725634896278,0.000815,55132.0,55116.0,0.181434]
[1725634896501,0.000815,55132.0,55123.0,0.1931]
[1725634896737,0.000815,55132.0,55127.0,0.1931]
[1725634896988,0.000815,55132.0,55126.0,0.1822]
[1725634896989,0.000815,55132.0,55129.0,0.1931]
[1725634897476,0.000815,55132.0,55130.0,0.023]
[1725634897729,0.01,55131.0,55117.0,0.1885]
[1725634897991,0.01,55131.0,55111.0,0.52650515]
[1725634897992,0.6352834,55127.0,55111.0,0.52650515]
[1725634898202,0.01,55129.0,55112.0,0.52650515]
[1725634898424,0.362792,55128.0,55108.0,0.1885]
[1725634898683,0.11,55127.0,55109.0,0.1915]
[1725634898912,0.181423,55120.0,55109.0,0.1915]
[1725634899188,0.372851,55119.0,55109.0,0.1915]
[1725634899424,0.362827,55123.0,55109.0,0.1915]
[1725634899425,0.4638824,55114.0,55109.0,0.1915]
[1725634899643,0.18145,55112.0,55109.0,0.1915]
[1725634899926,0.36291,55110.0,55109.0,0.1915]
[1725634900153,0.36291,55110.0,55080.0,0.40021855]
[1725634900154,0.01,55092.0,55080.0,0.40021855]
[1725634900405,0.4162,55095.0,55080.0,0.00021855]
[1725634900406,0.554642,55082.0,55080.0,0.00021855]
[1725634900662,0.4538824,55092.0,55080.0,0.00021855]
[1725634900888,0.4162,55095.0,55080.0,0.41281855]
[1725634901137,0.1805,55101.0,55080.0,0.41281855]
[1725634901138,0.01,55099.0,55081.0,0.1915]
[1725634901349,0.3982,55103.0,55083.0,0.1915]
[1725634901576,0.1,55102.0,55083.0,0.1915]
[1725634901802,0.01,55104.0,55089.0,0.1915]
[1725634902040,0.01,55099.0,55089.0,0.1915]
[1725634902266,0.01,55098.0,55089.0,0.1915]
[1725634902489,0.01,55101.0,55089.0,0.1915]
[1725634902712,0.01,55101.0,55090.0,0.1915]
[1725634903156,0.01,55104.0,55090.0,0.1915]
[1725634903408,0.01,55096.0,55090.0,0.1915]
[1725634903869,0.181514,55092.0,55091.0,0.1915]
[1725634904357,0.4076,55093.0,55091.0,0.1915]
[1725634904584,0.4076,55093.0,55077.0,0.1802]
[1725634904585,0.01,55100.0,55093.0,0.1915]
[1725634904830,0.362943,55106.0,55093.0,0.1915]
[1725634904831,0.01,55110.0,55093.0,0.373008]
[1725634905052,0.01,55105.0,55093.0,0.1915]
[1725634905302,0.01,55100.0,55095.0,0.1915]
[1725634905546,0.4538824,55098.0,55087.0,0.1915]
[1725634905809,0.4111,55099.0,55089.0,0.1915]
[1725634905810,0.4638824,55092.0,55089.0,0.1915]
[1725634906075,0.19155,55081.0,55080.0,0.00021855]
[1725634906331,0.554651,55081.0,55080.0,0.00021855]
[1725634906571,1.416952,55081.0,55080.0,0.00021855]
[1725634906872,2.359954,55081.0,55080.0,0.00021855]
[1725634907091,1.996853,55081.0,55080.0,0.00021855]
[1725634907311,1.053851,55081.0,55080.0,0.00021855]
[1725634907522,0.5092,55081.0,55080.0,0.00021855]
[1725634907959,1.416952,55081.0,55080.0,0.00021855]
[1725634908209,0.5092,55081.0,55080.0,0.00021855]
[1725634908429,0.69075,55081.0,55080.0,0.00021855]
[1725634908647,1.043851,55081.0,55080.0,0.00021855]
[1725634908885,0.29155,55081.0,55080.0,0.00021855]
[1725634909123,0.1,55081.0,55080.0,0.00021855]
[1725634909364,0.917752,55081.0,55080.0,0.00021855]
[1725634909614,1.280853,55081.0,55080.0,0.00021855]
[1725634909857,0.917752,55081.0,55080.0,0.00021855]
[1725634910094,1.615952,55081.0,55080.0,0.00021855]
[1725634910316,1.979053,55081.0,55080.0,0.00021855]
[1725634911255,1.981053,55081.0,55080.0,0.00021855]
[1725634911476,1.979053,55081.0,55080.0,0.00021855]
[1725634911701,1.615952,55081.0,55080.0,0.00021855]
[1725634911932,1.433852,55081.0,55080.0,0.00021855]
[1725634912179,0.01,55085.0,55080.0,0.00021855]
[1725634912452,0.408,55089.0,55080.0,0.00021855]
[1725634912453,0.18155,55081.0,55080.0,0.00021855]
[1725634912696,0.907752,55081.0,55080.0,0.22844855]
[1725634912924,0.907752,55081.0,55080.0,0.00021855]
[1725634912925,0.917752,55081.0,55080.0,0.00021855]
[1725634913159,1.280853,55081.0,55080.0,0.00021855]
[1725634913424,1.693453,55081.0,55080.0,0.00021855]
[1725634913659,1.876353,55081.0,55080.0,0.00021855]
[1725634914389,1.856353,55081.0,55080.0,0.00021855]
[1725634914632,1.493252,55081.0,55080.0,0.00021855]
[1725634915111,0.947251,55081.0,55080.0,0.00021855]
[1725634915365,0.3881,55092.0,55081.0,0.1915]
[1725634915626,0.3881,55092.0,55080.0,0.19401855]
[1725634915627,0.181528,55088.0,55087.0,0.1915]
[1725634915880,0.01,55096.0,55087.0,0.22823]
[1725634916132,0.5909,55100.0,55087.0,0.22823]
[1725634916133,0.01,55094.0,55087.0,0.22823]
[1725634916392,0.917637,55088.0,55087.0,0.03673]
[1725634916641,0.554651,55081.0,55080.0,0.00021855]
[1725634916872,1.7547354,55081.0,55080.0,0.00021855]
[1725634917111,2.1178364,55081.0,55080.0,0.00021855]
[1725634917843,1.7547354,55081.0,55080.0,0.00021855]
[1725634918072,2.1278364,55081.0,55080.0,0.00021855]
[1725634918294,2.4809374,55081.0,55080.0,0.00021855]
[1725634918555,2.1198364,55081.0,55080.0,0.00021855]
[1725634918790,2.1178364,55081.0,55080.0,0.00021855]
[1725634919452,2.4909374,55081.0,55080.0,0.00184655]
[1725634919725,2.8909374,55081.0,55080.0,0.00184655]
[1725634919965,3.2560384,55081.0,55080.0,0.00184655]
[1725634920166,2.5198364,55081.0,55080.0,0.00184655]
[1725634920442,2.5198364,55081.0,55053.0,0.97775515]
[1725634920443,1.0438824,55072.0,55053.0,0.56485515]
[1725634920669,0.4538824,55057.0,55053.0,0.71962515]
[1725634920891,0.01,55065.0,55053.0,0.71962515]
[1725634921111,0.01,55065.0,55054.0,0.1915]
[1725634921573,0.6355184,55055.0,55054.0,0.1915]
[1725634921789,0.554909,55055.0,55054.0,0.1915]
[1725634922024,0.554909,55055.0,55053.0,0.00162]
[1725634922025,0.191639,55054.0,55053.0,0.00162]
[1725634922264,0.94473888,55054.0,55053.0,0.00162]
[1725634922519,1.30801758,55054.0,55053.0,0.00162]
[1725634922740,1.281476,55054.0,55053.0,0.00162]
[1725634922966,0.01,55058.0,55053.0,0.00162]
[1725634923213,0.01,55064.0,55056.0,0.1915]
[1725634923458,0.01,55059.0,55056.0,0.1915]
[1725634923674,0.01,55059.0,55057.0,0.03673]
[1725634923886,0.01,55059.0,55058.0,0.1915]
[1725634923887,0.191624,55059.0,55058.0,0.1915]
[1725634924143,0.191615,55062.0,55058.0,0.22823]
[1725634924365,0.54485,55061.0,55060.0,0.1915]
[1725634924616,0.363205,55066.0,55058.0,0.03673]
[1725634924617,0.554869,55059.0,55058.0,0.03673]
[1725634924847,1.7352434,55059.0,55058.0,0.03673]
[1725634925134,1.0087514,55059.0,55058.0,0.03673]
[1725634925373,0.181623,55059.0,55058.0,0.03673]
[1725634925604,0.01,55062.0,55058.0,0.03673]
[1725634925842,0.01,55062.0,55059.0,0.1915]
[1725634926166,0.01,55064.0,55059.0,0.1915]
[1725634926343,0.4538824,55070.0,55058.0,0.03673]
[1725634926344,0.01,55070.0,55061.0,0.1915]
[1725634926573,0.4156,55080.0,55060.0,0.2104]
[1725634926574,0.01,55078.0,55064.0,0.384]
[1725634926827,0.4538824,55086.0,55065.0,0.22823]
[1725634926828,0.01,55080.0,55065.0,0.22823]
[1725634927070,0.1816,55066.0,55065.0,0.25123]
[1725634927318,0.4538824,55074.0,55065.0,0.25123]
[1725634927319,0.01,55070.0,55065.0,0.25123]
[1725634927536,0.181592,55069.0,55065.0,0.25123]
[1725634927795,0.181596,55068.0,55065.0,0.25123]
[1725634928078,0.181596,55068.0,55051.0,0.52650515]
[1725634928079,0.950179,55058.0,55057.0,0.03673]
[1725634928341,0.950179,55058.0,55048.0,0.00164]
[1725634928342,1.0188004,55054.0,55048.0,0.00164]
[1725634928571,0.565008,55045.0,55041.0,0.00162]
[1725634928828,0.565008,55045.0,55002.0,0.01]
[1725634928829,0.93843,55040.0,55039.0,1e-06]
[1725634929049,0.93843,55040.0,55005.0,0.1967]
[1725634929050,1.334777,55025.0,55013.0,0.03673]
[1725634929297,1.334777,55025.0,55015.0,0.03673]
[1725634929298,1.312777,55025.0,55015.0,0.03673]
[1725634929525,0.908677,55025.0,55016.0,0.1915]
[1725634929748,0.910677,55025.0,55016.0,0.1915]
[1725634930025,0.910677,55025.0,55012.0,0.00164]
[1725634930026,1.890548,55025.0,55012.0,0.00164]
[1725634930268,1.888548,55025.0,55012.0,0.00164]
[1725634930488,2.262019,55025.0,55012.0,0.00164]
[1725634930708,3.0993724,55025.0,55012.0,0.00164]
[1725634930969,2.1521074,55013.0,55012.0,0.00164]
[1725634931198,0.6356574,55013.0,55012.0,0.00164]
[1725634931455,0.4038,55020.0,55013.0,0.5818]
[1725634931456,0.36351,55020.0,55013.0,0.5818]
[1725634931692,0.933219,55053.0,55024.0,0.1915]
[1725634931693,0.02,55046.0,55024.0,0.1915]
[1725634931960,0.88992415,55033.0,55024.0,0.19313]
[1725634932200,0.181715,55031.0,55030.0,0.1915]
[1725634932436,0.4538824,55037.0,55030.0,0.1915]
[1725634932653,0.181709,55033.0,55032.0,0.1915]
[1725634932908,0.181735,55025.0,55024.0,0.00163]
[1725634933133,0.412,55040.0,55024.0,0.00163]
[1725634933362,0.6468824,55043.0,55024.0,0.00163]
[1725634933363,0.363357,55043.0,55024.0,0.00163]
[1725634933583,0.181691,55039.0,55024.0,0.00163]
[1725634933869,0.00454204,55042.0,55024.0,0.00163]
[1725634934099,0.181718,55031.0,55024.0,0.22986]
[1725634934331,0.363387,55038.0,55025.0,0.05973]
[1725634934590,0.363268,55056.0,55034.0,0.01]
[1725634934821,1.36748755,55061.0,55035.0,0.3773]
[1725634934822,0.383279,55055.0,55035.0,0.3773]
[1725634935096,0.363243,55060.0,55036.0,0.1915]
[1725634935347,0.181647,55052.0,55044.0,0.1915]
[1725634935589,0.181666,55046.0,55045.0,0.03673]
[1725634936029,0.181692,55038.0,55037.0,0.185]
[1725634936289,0.02,55046.0,55025.0,0.023]
[1725634936290,0.02454246,55045.0,55031.0,0.03673]
[1725634936499,0.02454246,55045.0,55027.0,0.1865]
[1725634936500,0.02,55050.0,55033.0,0.03673]
[1725634936722,0.01,55045.0,55033.0,0.03673]
[1725634936960,0.4538824,55053.0,55033.0,0.03673]
[1725634936961,0.02,55050.0,55035.0,0.03673]
[1725634937204,0.002,55052.0,55034.0,0.023]
[1725634937205,0.00454172,55052.0,55038.0,0.03673]
[1725634937434,0.02,55055.0,55039.0,0.023]
[1725634937435,0.02,55054.0,55039.0,0.023]
[1725634937666,0.4538824,55059.0,55034.0,0.023]
[1725634937667,0.181702,55035.0,55034.0,0.023]
[1725634937924,0.181702,55035.0,55024.0,0.38583]
[1725634937925,0.181725,55028.0,55024.0,0.38583]
[1725634938149,0.181735,55025.0,55024.0,0.00163]
[1725634938584,0.363471,55025.0,55024.0,0.00163]
[1725634938803,1.272148,55025.0,55024.0,0.00163]
[1725634939071,0.908677,55025.0,55024.0,0.00163]
[1725634939296,0.02,55030.0,55024.0,0.00163]
[1725634939517,0.4538824,55034.0,55024.0,0.00163]
[1725634939518,0.363454,55028.0,55024.0,0.00163]
[1725634939749,0.363385,55038.0,55024.0,0.00163]
[1725634940009,0.02,55040.0,55024.0,0.00163]
[1725634940010,0.01,55039.0,55028.0,0.03673]
[1725634940499,0.545166,55029.0,55028.0,0.03673]
[1725634940502,0.02,55040.0,55028.0,0.03673]
[1725634940735,0.363241,55060.0,55030.0,0.22823]
[1725634940736,0.022,55050.0,55030.0,0.22823]
[1725634940989,0.022,55050.0,55027.0,0.01]
[1725634940990,0.363321,55048.0,55032.0,0.22823]
[1725634941205,0.01,55054.0,55034.0,0.22823]
[1725634941428,0.4738824,55060.0,55036.0,0.22823]
[1725634941656,0.181652,55051.0,55038.0,0.22823]
[1725634941883,0.53104612,55059.0,55038.0,0.03673]
[1725634941884,0.181689,55039.0,55038.0,0.03673]
[1725634942110,0.02,55047.0,55037.0,0.4093]
[1725634942111,0.181686,55040.0,55039.0,0.023]
[1725634942566,0.02454208,55047.0,55038.0,0.023]
[1725634942567,0.02,55047.0,55038.0,0.023]
[1725634943057,0.201686,55040.0,55039.0,0.1915]
[1725634943283,0.20622851,55040.0,55039.0,0.1915]
[1725634943508,0.191686,55040.0,55039.0,0.1915]
[1725634943735,0.201686,55040.0,55039.0,0.1915]
[1725634943956,0.201689,55039.0,55038.0,0.00163]
[1725634944207,0.203689,55039.0,55038.0,0.00163]
[1725634944446,0.201689,55039.0,55038.0,0.00163]
[1725634944660,0.4129,55052.0,55038.0,0.00163]
[1725634944661,0.02,55043.0,55038.0,0.00163]
[1725634944883,0.4538824,55048.0,55038.0,0.00163]
[1725634945125,0.02,55050.0,55038.0,0.00163]
[1725634945126,0.181689,55039.0,55038.0,0.00163]
[1725634945649,0.545067,55039.0,55038.0,0.00163]
[1725634945878,2.13714812,55039.0,55038.0,0.00163]
[1725634946102,1.7257054,55039.0,55038.0,0.00163]
[1725634946547,2.1090834,55039.0,55038.0,0.00163]
[1725634946796,2.1110834,55039.0,55038.0,0.00163]
[1725634947042,0.908445,55039.0,55038.0,0.00163]
[1725634947284,1.3623274,55039.0,55038.0,0.00163]
[1725634947505,1.7257054,55039.0,55038.0,0.00163]
[1725634947751,1.7457054,55039.0,55038.0,0.00163]
[1725634948515,2.1090834,55039.0,55038.0,0.00163]
[1725634948743,2.3071834,55039.0,55038.0,0.00163]
[1725634949423,2.6705614,55039.0,55038.0,0.00163]
[1725634949647,2.3071834,55039.0,55038.0,0.00163]
[1725634949864,2.3071834,55039.0,55038.0,0.0009422]
[1725634950334,0.363355,55043.0,55038.0,0.0009422]
[1725634950628,0.01,55049.0,55038.0,0.1984422]
[1725634950871,0.181689,55039.0,55038.0,0.1984422]
[1725634951119,0.4538824,55052.0,55038.0,0.1984422]
[1725634951334,0.181669,55046.0,55039.0,0.023]
[1725634951554,0.4538824,55046.0,55039.0,0.023]
[1725634952057,0.002,55060.0,55039.0,0.023]
[1725634952058,0.01,55060.0,55045.0,0.363336]
[1725634952279,0.52650515,55059.0,55051.0,0.03673]
[1725634952497,0.4538824,55062.0,55051.0,0.03673]
[1725634952738,0.363253,55058.0,55053.0,0.03673]
[1725634952998,0.4538824,55062.0,55054.0,0.023]
[1725634953274,0.363212,55065.0,55055.0,0.03673]
[1725634953520,0.363212,55065.0,55045.0,0.01]
[1725634953521,0.192399,55071.0,55059.0,0.03673]
[1725634953763,0.181591,55069.0,55061.0,0.03673]
[1725634953993,0.181592,55069.0,55063.0,0.03673]
[1725634954256,0.00076965,55071.0,55063.0,0.03673]
[1725634954470,0.00076965,55071.0,55065.0,0.03673]
[1725634954719,0.00076965,55071.0,55070.0,0.22823]
[1725634954965,0.00076965,55071.0,55070.0,0.62623]
[1725634955226,0.00076965,55071.0,55070.0,0.64923]
[1725634955462,0.4538824,55084.0,55070.0,0.64923]
[1725634955463,0.02,55097.0,55072.0,0.01]
[1725634955742,0.52650515,55093.0,55084.0,0.1915]
[1725634956011,0.363035,55091.0,55090.0,0.1915]
[1725634956228,0.02,55100.0,55085.0,0.4005]
[1725634956229,0.8168654,55099.0,55085.0,0.4005]
[1725634956458,0.544602,55086.0,55085.0,0.4005]
[1725634956682,0.363047,55090.0,55085.0,0.4005]
[1725634956910,0.02,55097.0,55085.0,0.4005]
[1725634957144,0.181534,55086.0,55085.0,0.4005]
[1725634957366,0.363048,55090.0,55085.0,0.592]
[1725634957588,0.00082,55095.0,55085.0,0.592]
[1725634957813,0.00082,55095.0,55086.0,0.1921]
[1725634958073,0.00082,55095.0,55090.0,0.01]
[1725634958324,0.00082,55095.0,55091.0,0.5946]
[1725634958595,0.00453685,55111.0,55091.0,0.5946]
[1725634958596,0.02,55120.0,55091.0,0.6176]
[1725634958822,0.01,55130.0,55091.0,0.6176]
[1725634958823,0.191453,55111.0,55093.0,0.3907]
[1725634959056,0.01,55111.0,55094.0,0.204506]
[1725634959284,0.02,55128.0,55103.0,0.181478]
[1725634959547,0.52650515,55123.0,55104.0,0.023]
[1725634959776,0.002815,55132.0,55105.0,0.5785]
[1725634959777,0.02,55129.0,55105.0,0.5785]
[1725634960014,0.02,55129.0,55107.0,0.568763]
[1725634960015,0.362796,55128.0,55107.0,0.568763]
[1725634960268,0.02,55126.0,55107.0,0.3873]
[1725634960501,0.4592379,55127.0,55107.0,0.3873]
[1725634960502,0.181461,55108.0,55107.0,0.3873]
[1725634960721,0.544384,55108.0,55107.0,0.3873]
[1725634960944,0.02,55120.0,55107.0,0.4103]
[1725634961193,0.3802,55125.0,55107.0,0.4103]
[1725634961194,0.362917,55109.0,55107.0,0.3873]
[1725634961416,0.4538824,55116.0,55105.0,0.1938]
[1725634961661,0.281441,55115.0,55105.0,0.1938]
[1725634961921,0.02,55126.0,55106.0,0.181467]
[1725634962169,0.362794,55128.0,55111.0,0.181451]
[1725634962396,0.181412,55123.0,55113.0,0.1998]
[1725634962620,0.0045354,55122.0,55114.0,0.023]
[1725634962846,0.36282,55124.0,55114.0,0.023]
[1725634963099,0.362835,55122.0,55114.0,0.023]
[1725634963325,0.181414,55123.0,55114.0,0.023]